fUST/lending_fUST_20250130
["ID","MTS","AMOUNT","RATE_DAILY","PERIOD"]
[350933440,1738215054135,-500.0,0.00017123,2]
[350933441,1738215054144,-500.0,0.00017123,2]
[350933442,1738215054154,-500.0,0.00017123,2]
[350933443,1738215054163,-500.0,0.00017123,2]
[350933444,1738215054172,-500.0,0.00017123,2]
[350933445,1738215054182,-500.0,0.00017123,2]
[350933446,1738215054191,-977.77,0.00017123,2]
[350933447,1738215054201,-500.0,0.00017123,2]
[350933448,1738215054211,-500.0,0.00017123,2]
[350933449,1738215054220,-987.45,0.00017123,2]
[350933450,1738215054230,-150.11,0.00017123,2]
[350933451,1738215054240,-500.0,0.00017123,2]
[350933452,1738215054250,-6615.15,0.00017123,2]
[350933453,1738215054259,-500.0,0.00017123,2]
[350933454,1738215054269,-1971.14,0.00017123,2]
[350933455,1738215054282,-1350.09,0.00017123,2]
[350933456,1738215054291,-1072.08,0.00017123,2]
[350933457,1738215054301,-508.76,0.00017123,2]
[350933458,1738215054310,-760.88,0.00017123,2]
[350933459,1738215054321,-540.4,0.00017123,2]
[350933460,1738215054332,-500.0,0.00017123,2]
[350933461,1738215054342,-1492.06,0.00017123,2]
[350933462,1738215054351,-16429.72,0.00017123,2]
[350933463,1738215054362,-789.56,0.00017123,2]
[350933464,1738215054374,-500.0,0.00017123,2]
[350933465,1738215054383,-2037.21,0.00017123,2]
[350933466,1738215054405,-1163.64,0.00017123,2]
[350933467,1738215054423,-2931.26,0.00017123,2]
[350933468,1738215054440,-500.0,0.00017123,2]
[350933469,1738215054460,-706.47,0.00017123,2]
[350933470,1738215054479,-807.67,0.00017123,2]
[350933471,1738215054496,-500.0,0.00017123,2]
[350933472,1738215054512,-516.01,0.00017123,2]
[350933473,1738215054531,-748.52,0.00017123,2]
[350933474,1738215054546,-2497.6,0.00017123,2]
[350933475,1738215054562,-500.0,0.00017123,2]
[350933476,1738215054580,-521.28,0.00017123,2]
[350933477,1738215054597,-152.2112292,0.00017123,2]
[350933478,1738215054616,-589.9,0.00017123,2]
[350933479,1738215054629,-500.0,0.00017123,2]
[350933480,1738215054643,-1149.01,0.00017123,2]
[350933481,1738215054660,-2669.07,0.00017123,2]
[350933482,1738215054674,-1136.93,0.00017123,2]
[350933483,1738215054689,-1056.96,0.00017123,2]
[350933484,1738215054701,-1578.24,0.00017123,2]
[350933485,1738215054716,-1167.12,0.00017123,2]
[350933486,1738215054730,-605.0,0.00017123,2]
[350933487,1738215054744,-1651.07,0.00017123,2]
[350933488,1738215054758,-693.59,0.00017123,2]
[350933489,1738215054772,-7376.09,0.00017123,2]
[350933490,1738215054787,-500.0,0.00017123,2]
[350933491,1738215054801,-1255.43,0.00017123,2]
[350933492,1738215054815,-500.0,0.00017123,2]
[350933493,1738215054828,-1639.8,0.00017123,2]
[350933494,1738215054842,-2680.77,0.00017123,2]
[350933495,1738215054856,-500.0,0.00017123,2]
[350933496,1738215054870,-3480.53,0.00017123,2]
[350933497,1738215054884,-500.0,0.00017123,2]
[350933498,1738215054898,-300.64630285,0.00017123,2]
[350933499,1738215054912,-940.8,0.00017123,2]
[350933500,1738215054926,-500.0,0.00017123,2]
[350933501,1738215054940,-5212.74,0.00017123,2]
[350933502,1738215054955,-500.0,0.00017123,2]
[350933503,1738215054968,-500.0,0.00017123,2]
[350933504,1738215054983,-500.0,0.00017123,2]
[350933505,1738215054996,-500.0,0.00017123,2]
[350933506,1738215055011,-2559.13,0.00017123,2]
[350933507,1738215055024,-151.0,0.0001717,3]
[350933508,1738215055038,-181.7705251,0.000172,2]
[350933509,1738215055051,-4880.965043,0.000172,2]
[350933510,1738215055065,-151.0,0.00017246,3]
[350933511,1738215055079,-913.17,0.0001726,2]
[350933512,1738215055093,-500.0,0.0001726,2]
[350933513,1738215055106,-500.0,0.0001726,2]
[350933514,1738215055121,-500.0,0.0001726,2]
[350933515,1738215055137,-500.0,0.0001726,2]
[350933516,1738215055152,-500.0,0.0001726,2]
[350933517,1738215055165,-500.0,0.0001726,2]
[350933518,1738215055179,-500.0,0.0001726,2]
[350933519,1738215055195,-500.0,0.0001726,2]
[350933520,1738215055209,-869.59,0.0001726,2]
[350933521,1738215055223,-500.0,0.0001726,2]
[350933522,1738215055237,-396.02622332,0.0001726,2]
[350933523,1738215055249,-500.0,0.0001726,2]
[350933524,1738215055259,-602.2,0.0001726,2]
[350933525,1738215055391,-500.0,0.0001726,2]
[350933526,1738215055401,-500.0,0.0001726,2]
[350933527,1738215055410,-231.03,0.0001726,2]
[350933528,1738215055419,-389.83652612,0.0001726,2]
[350933529,1738215055428,-500.0,0.0001726,2]
[350933530,1738215055438,-560.91,0.0001726,2]
[350933531,1738215055449,-500.0,0.0001726,2]
[350933532,1738215055463,-500.0,0.0001726,2]
[350933533,1738215055473,-500.0,0.0001726,2]
[350933534,1738215055482,-500.0,0.0001726,2]
[350933535,1738215055492,-500.0,0.0001726,2]
[350933536,1738215055501,-500.0,0.0001726,2]
[350933537,1738215055510,-977.77,0.0001726,2]
[350933538,1738215055519,-500.0,0.0001726,2]
[350933539,1738215055528,-471.03,0.0001726,2]
[350933540,1738215055539,-987.45,0.0001726,2]
[350933541,1738215055553,-195.27902595,0.0001726,2]
[350933542,1738215055562,-6615.15,0.0001726,2]
[350933543,1738215055571,-500.0,0.0001726,2]
[350933544,1738215055581,-1971.14,0.0001726,2]
[350933545,1738215055590,-1350.09,0.0001726,2]
[350933546,1738215055599,-1072.08,0.0001726,2]
[350933547,1738215055608,-760.88,0.0001726,2]
[350933548,1738215055618,-540.4,0.0001726,2]
[350933549,1738215055627,-500.0,0.0001726,2]
[350933550,1738215055636,-1492.06,0.0001726,2]
[350933551,1738215055645,-16429.72,0.0001726,2]
[350933552,1738215055654,-789.56,0.0001726,2]
[350933553,1738215055664,-310.01,0.0001726,2]
[350933554,1738215055674,-2037.21,0.0001726,2]
[350933555,1738215055683,-1163.64,0.0001726,2]
[350933556,1738215055692,-2931.26,0.0001726,2]
[350933557,1738215055702,-500.0,0.0001726,2]
[350933558,1738215055711,-706.47,0.0001726,2]
[350933559,1738215055721,-807.67,0.0001726,2]
[350933560,1738215055730,-748.52,0.0001726,2]
[350933561,1738215055739,-2497.6,0.0001726,2]
[350933562,1738215055749,-521.28,0.0001726,2]
[350933563,1738215055758,-216.27498767,0.0001726,2]
[350933564,1738215055767,-1149.01,0.0001726,2]
[350933565,1738215055777,-2669.07,0.0001726,2]
[350933566,1738215055786,-1136.93,0.0001726,2]
[350933567,1738215055795,-1056.96,0.0001726,2]
[350933568,1738215055804,-1578.24,0.0001726,2]
[350933569,1738215055814,-1167.12,0.0001726,2]
[350933570,1738215055823,-1651.07,0.0001726,2]
[350933571,1738215055832,-693.59,0.0001726,2]
[350933572,1738215055842,-7376.09,0.0001726,2]
[350933573,1738215055852,-500.0,0.0001726,2]
[350933574,1738215055861,-1255.43,0.0001726,2]
[350933575,1738215055870,-259.33907256,0.0001726,2]
[350933576,1738215055879,-1639.8,0.0001726,2]
[350933577,1738215055889,-2680.77,0.0001726,2]
[350933578,1738215055898,-500.0,0.0001726,2]
[350933579,1738215055907,-3480.53,0.0001726,2]
[350933580,1738215055917,-500.0,0.0001726,2]
[350933581,1738215055926,-940.8,0.0001726,2]
[350933582,1738215055936,-500.0,0.0001726,2]
[350933583,1738215055945,-5212.74,0.0001726,2]
[350933584,1738215055954,-500.0,0.0001726,2]
[350933585,1738215055963,-500.0,0.0001726,2]
[350933586,1738215055973,-500.0,0.0001726,2]
[350933587,1738215055982,-500.0,0.0001726,2]
[350933588,1738215055991,-2559.13,0.0001726,2]
[350933589,1738215056000,-2000.0,0.000173,2]
[350933590,1738215056009,-151.0,0.00017321,3]
[350933591,1738215056018,-154.0,0.00017344,2]
[350933592,1738215056026,-154.0,0.00017344,2]
[350933593,1738215056035,-154.0,0.00017344,2]
[350933594,1738215056044,-154.0,0.00017344,2]
[350933595,1738215056053,-154.0,0.00017344,2]
[350933596,1738215056063,-154.0,0.00017344,2]
[350933597,1738215056072,-156.0,0.00017344,2]
[350933598,1738215056084,-150.11,0.00017397,2]
[350933599,1738215056093,-616.95149801,0.00017397,2]
[350933600,1738215056103,-913.17,0.00017397,2]
[350933601,1738215056112,-500.0,0.00017397,2]
[350933602,1738215056122,-158.374072,0.00017397,2]
[350933603,1738215056131,-500.0,0.00017397,2]
[350933604,1738215056141,-500.0,0.00017397,2]
[350933605,1738215056151,-500.0,0.00017397,2]
[350933606,1738215056160,-500.0,0.00017397,2]
[350933607,1738215056169,-500.0,0.00017397,2]
[350933608,1738215056179,-500.0,0.00017397,2]
[350933609,1738215056188,-869.59,0.00017397,2]
[350933610,1738215056199,-500.0,0.00017397,2]
[350933611,1738215056209,-500.0,0.00017397,2]
[350933612,1738215056218,-500.0,0.00017397,2]
[350933613,1738215056228,-602.2,0.00017397,2]
[350933614,1738215056237,-500.0,0.00017397,2]
[350933615,1738215056246,-593.3535514,0.00017397,2]
[350933616,1738215056255,-500.0,0.00017397,2]
[350933617,1738215056264,-560.91,0.00017397,2]
[350933618,1738215056274,-500.0,0.00017397,2]
[350933619,1738215056287,-282.32,0.00017397,2]
[350933620,1738215056297,-500.0,0.00017397,2]
[350933621,1738215056308,-500.0,0.00017397,2]
[350933622,1738215056317,-610.8,0.00017397,2]
[350933623,1738215056327,-500.0,0.00017397,2]
[350933624,1738215056336,-977.77,0.00017397,2]
[350933625,1738215056345,-500.0,0.00017397,2]
[350933626,1738215056355,-987.45,0.00017397,2]
[350933627,1738215056364,-151.0,0.00017397,3]
[350933628,1738215056374,-6615.15,0.00017397,2]
[350933629,1738215056383,-500.0,0.00017397,2]
[350933630,1738215056394,-1971.14,0.00017397,2]
[350933631,1738215056403,-1350.09,0.00017397,2]
[350933632,1738215056413,-1072.08,0.00017397,2]
[350933633,1738215056422,-760.88,0.00017397,2]
[350933634,1738215056431,-540.4,0.00017397,2]
[350933635,1738215056441,-500.0,0.00017397,2]
[350933636,1738215056450,-1492.06,0.00017397,2]
[350933637,1738215056460,-16429.72,0.00017397,2]
[350933638,1738215056469,-789.56,0.00017397,2]
[350933639,1738215056478,-2037.21,0.00017397,2]
[350933640,1738215056487,-1163.64,0.00017397,2]
[350933641,1738215056497,-2931.26,0.00017397,2]
[350933642,1738215056506,-500.0,0.00017397,2]
[350933643,1738215056515,-706.47,0.00017397,2]
[350933644,1738215056525,-807.67,0.00017397,2]
[350933645,1738215056534,-748.52,0.00017397,2]
[350933646,1738215056543,-2497.6,0.00017397,2]
[350933647,1738215056553,-521.28,0.00017397,2]
[350933648,1738215056562,-1149.01,0.00017397,2]
[350933649,1738215056571,-2669.07,0.00017397,2]
[350933650,1738215056581,-1136.93,0.00017397,2]
[350933651,1738215056591,-1056.96,0.00017397,2]
[350933652,1738215056601,-1578.24,0.00017397,2]
[350933653,1738215056609,-1167.12,0.00017397,2]
[350933654,1738215056618,-1651.07,0.00017397,2]
[350933655,1738215056627,-693.59,0.00017397,2]
[350933656,1738215056637,-7376.09,0.00017397,2]
[350933657,1738215056646,-215.95007531,0.00017397,2]
[350933658,1738215056655,-1255.43,0.00017397,2]
[350933659,1738215056665,-1639.8,0.00017397,2]
[350933660,1738215056675,-2680.77,0.00017397,2]
[350933661,1738215056684,-500.0,0.00017397,2]
[350933662,1738215056694,-3480.53,0.00017397,2]
[350933663,1738215056703,-500.0,0.00017397,2]
[350933664,1738215056712,-940.8,0.00017397,2]
[350933665,1738215056721,-500.0,0.00017397,2]
[350933666,1738215056731,-5212.74,0.00017397,2]
[350933667,1738215056741,-500.0,0.00017397,2]
[350933668,1738215056750,-500.0,0.00017397,2]
[350933669,1738215056759,-297.27585428,0.00017397,2]
[350933670,1738215056768,-558.63508846,0.00017397,2]
[350933671,1738215056777,-250.0,0.00017438,2]
[350933672,1738215056787,-160.0,0.00017494,3]
[350933673,1738215056796,-161.75882844,0.00017494,5]
[350933674,1738215056805,-1000.0,0.00017521,2]
[350933675,1738215056815,-1000.0,0.00017521,2]
[350933676,1738215056824,-913.17,0.00017534,2]
[350933677,1738215056833,-500.0,0.00017534,2]
[350933678,1738215056842,-500.0,0.00017534,2]
[350933679,1738215056852,-500.0,0.00017534,2]
[350933680,1738215056861,-500.0,0.00017534,2]
[350933681,1738215056870,-500.0,0.00017534,2]
[350933682,1738215056879,-500.0,0.00017534,2]
[350933683,1738215056889,-500.0,0.00017534,2]
[350933684,1738215056898,-869.59,0.00017534,2]
[350933685,1738215056907,-500.0,0.00017534,2]
[350933686,1738215056916,-500.0,0.00017534,2]
[350933687,1738215056926,-500.0,0.00017534,2]
[350933688,1738215056934,-602.2,0.00017534,2]
[350933689,1738215056943,-500.0,0.00017534,2]
[350933690,1738215056953,-500.0,0.00017534,2]
[350933691,1738215056962,-560.91,0.00017534,2]
[350933692,1738215056971,-500.0,0.00017534,2]
[350933693,1738215056980,-500.0,0.00017534,2]
[350933694,1738215056990,-500.0,0.00017534,2]
[350933695,1738215056999,-500.0,0.00017534,2]
[350933696,1738215057008,-977.77,0.00017534,2]
[350933697,1738215057017,-500.0,0.00017534,2]
[350933698,1738215057026,-987.45,0.00017534,2]
[350933699,1738215057035,-6615.15,0.00017534,2]
[350933700,1738215057044,-500.0,0.00017534,2]
[350933701,1738215057053,-1971.14,0.00017534,2]
[350933702,1738215057063,-1350.09,0.00017534,2]
[350933703,1738215057072,-1072.08,0.00017534,2]
[350933704,1738215057083,-760.88,0.00017534,2]
[350933705,1738215057093,-540.4,0.00017534,2]
[350933706,1738215057103,-500.0,0.00017534,2]
[350933707,1738215057112,-1492.06,0.00017534,2]
[350933708,1738215057122,-16429.72,0.00017534,2]
[350933709,1738215057131,-789.56,0.00017534,2]
[350933710,1738215057141,-2037.21,0.00017534,2]
[350933711,1738215057240,-1163.64,0.00017534,2]
[350933712,1738215057249,-2931.26,0.00017534,2]
[350933713,1738215057260,-500.0,0.00017534,2]
[350933714,1738215057270,-706.47,0.00017534,2]
[350933715,1738215057282,-807.67,0.00017534,2]
[350933716,1738215057293,-748.52,0.00017534,2]
[350933717,1738215057305,-2497.6,0.00017534,2]
[350933718,1738215057315,-521.28,0.00017534,2]
[350933719,1738215057326,-1149.01,0.00017534,2]
[350933720,1738215057336,-2669.07,0.00017534,2]
[350933721,1738215057346,-1136.93,0.00017534,2]
[350933722,1738215057356,-1056.96,0.00017534,2]
[350933723,1738215057366,-1578.24,0.00017534,2]
[350933724,1738215057376,-1167.12,0.00017534,2]
[350933725,1738215057385,-1651.07,0.00017534,2]
[350933726,1738215057395,-693.59,0.00017534,2]
[350933727,1738215057405,-7376.09,0.00017534,2]
[350933728,1738215057415,-1255.43,0.00017534,2]
[350933729,1738215057426,-1639.8,0.00017534,2]
[350933730,1738215057437,-636.25436876,0.00017534,2]
[350933731,1738215057900,-500.0,0.00016438,2]
[350933732,1738215057909,-500.0,0.00016438,2]
[350933733,1738215057919,-500.0,0.00016438,2]
[350933734,1738215057928,-500.0,0.00016438,2]
[350933735,1738215057938,-500.0,0.00016575,2]
[350933736,1738215057948,-507.56496256,0.00016575,2]
[350933737,1738215057957,-509.73427799,0.00016575,2]
[350933738,1738215057967,-242.94551503,0.00016712,2]
[350933739,1738215081736,500.0,0.00014166,2]
[350933743,1738215764296,168.475967,0.00013699,2]
[350933744,1738215804550,151.0,0.00015101,2]
[350933745,1738215932137,-10184.9376048,0.00015402,2]
[350933746,1738215932161,-173.429877,0.00015692,2]
[350933747,1738215932186,-615.33706753,0.00016007,2]
[350933748,1738215932211,-615.3370675,0.00016053,2]
[350933749,1738215932236,-615.3370675,0.00016099,2]
[350933750,1738215932260,-280.62380415,0.00016107,2]
[350933751,1738215932286,-615.3370675,0.00016146,2]
[350933752,1738215932310,-615.3370675,0.00016192,2]
[350933753,1738215932332,-615.3370675,0.00016238,2]
[350933754,1738215932353,-172.26914196,0.00016338,2]
[350933755,1738215932546,-663.5417851,0.00016338,2]
[350933756,1738215932571,-300.0,0.00016399,2]
[350933757,1738215932594,-4304.5764388,0.000164,2]
[350933758,1738215932620,-500.0,0.00016437,2]
[350933759,1738215932642,-500.0,0.00016437,2]
[350933760,1738215932666,-500.0,0.00016437,2]
[350933761,1738215932687,-280.0,0.00016437,2]
[350933762,1738215932711,-500.0,0.00016437,2]
[350933763,1738215932736,-500.0,0.00016437,2]
[350933764,1738215932759,-500.0,0.00016437,2]
[350933765,1738215932782,-500.0,0.00016437,2]
[350933766,1738215932805,-500.0,0.00016437,2]
[350933767,1738215932828,-500.0,0.00016437,2]
[350933768,1738215932851,-500.0,0.00016437,2]
[350933769,1738215932875,-500.0,0.00016437,2]
[350933770,1738215932899,-500.0,0.00016437,2]
[350933771,1738215932923,-500.0,0.00016437,2]
[350933772,1738215932950,-500.0,0.00016437,2]
[350933773,1738215932974,-500.0,0.00016437,2]
[350933774,1738215932998,-500.0,0.00016437,2]
[350933775,1738215933022,-500.0,0.00016437,2]
[350933776,1738215933046,-500.0,0.00016437,2]
[350933777,1738215933070,-501.86840247,0.00016437,2]
[350933778,1738215933094,-500.0,0.00016437,2]
[350933779,1738215933119,-500.0,0.00016437,2]
[350933780,1738215933142,-500.0,0.00016437,2]
[350933781,1738215933167,-500.0,0.00016437,2]
[350933782,1738215933192,-500.0,0.00016437,2]
[350933783,1738215933215,-500.0,0.00016437,2]
[350933784,1738215933239,-500.0,0.00016437,2]
[350933785,1738215933266,-500.0,0.00016437,2]
[350933786,1738215933287,-500.0,0.00016438,2]
[350933787,1738215933308,-500.0,0.00016438,2]
[350933788,1738215933328,-500.0,0.00016438,2]
[350933789,1738215933350,-500.0,0.00016438,2]
[350933790,1738215933372,-500.0,0.00016438,2]
[350933791,1738215933393,-98.07911379,0.00016438,2]
[350933794,1738216110781,331.162168,0.00013973,2]
[350933870,1738216232902,-152.0,0.00015482,5]
[350933871,1738216232912,-172.26914195,0.00016338,2]
[350933873,1738216232923,-164.33,0.00016428,2]
[350933875,1738216232932,-164.33,0.00016428,2]
[350933877,1738216232942,-164.33,0.00016428,2]
[350933878,1738216232952,-164.33,0.00016428,2]
[350933880,1738216232961,-164.33,0.00016428,2]
[350933881,1738216232971,-458.65639934,0.00016438,2]
[350933886,1738216238930,-41.34360066,0.00016438,2]
[350933887,1738216238939,-500.0,0.00016438,2]
[350933888,1738216238950,-501.1390165,0.00016438,2]
[350933889,1738216238959,-500.0,0.00016438,2]
[350933890,1738216238969,-500.0,0.00016438,2]
[350933891,1738216238979,-501.00695423,0.00016438,2]
[350933892,1738216238988,-500.0,0.00016438,2]
[350933893,1738216238998,-500.0,0.00016438,2]
[350933894,1738216239007,-500.0,0.00016438,2]
[350933895,1738216239017,-500.0,0.00016438,2]
[350933896,1738216239026,-500.0,0.00016438,2]
[350933897,1738216239035,-500.0,0.00016438,2]
[350933898,1738216239045,-500.0,0.00016438,2]
[350933899,1738216239054,-500.0,0.00016438,2]
[350933900,1738216239063,-500.0,0.00016438,2]
[350933901,1738216239074,-500.0,0.00016438,2]
[350933902,1738216239084,-500.0,0.00016438,2]
[350933903,1738216239094,-500.0,0.00016438,2]
[350933904,1738216239104,-123.38291432,0.00016438,2]
[350933905,1738216239119,-377.57080305,0.00016438,2]
[350933906,1738216239128,-500.0,0.00016438,2]
[350933907,1738216239138,-611.29243662,0.00016438,2]
[350933908,1738216239148,-565.85841002,0.00016438,2]
[350933909,1738216239158,-500.0,0.00016438,2]
[350933910,1738216239168,-500.0,0.00016438,2]
[350933911,1738216239177,-501.40058982,0.00016438,2]
[350933912,1738216239186,-500.0,0.00016438,2]
[350933913,1738216239195,-500.0,0.00016438,2]
[350933914,1738216239205,-500.0,0.00016438,2]
[350933915,1738216239215,-500.0,0.00016438,2]
[350933916,1738216239224,-500.0,0.00016438,2]
[350933917,1738216239233,-500.0,0.00016438,2]
[350933918,1738216239244,-500.0,0.00016438,2]
[350933919,1738216239254,-213.25,0.00016438,2]
[350933920,1738216239264,-500.0,0.00016438,2]
[350933921,1738216239273,-500.0,0.00016438,2]
[350933922,1738216239283,-500.0,0.00016438,2]
[350933923,1738216239293,-500.0,0.00016438,2]
[350933924,1738216239303,-564.33,0.00016438,2]
[350933925,1738216239313,-500.0,0.00016438,2]
[350933926,1738216239322,-500.0,0.00016438,2]
[350933927,1738216239332,-500.0,0.00016438,2]
[350933928,1738216239342,-500.0,0.00016438,2]
[350933929,1738216239352,-500.0,0.00016438,2]
[350933930,1738216239362,-500.0,0.00016438,2]
[350933931,1738216239372,-500.0,0.00016438,2]
[350933932,1738216239381,-500.0,0.00016438,2]
[350933933,1738216239391,-500.0,0.00016438,2]
[350933934,1738216239400,-500.0,0.00016438,2]
[350933935,1738216239410,-500.0,0.00016438,2]
[350933936,1738216239419,-500.0,0.00016438,2]
[350933937,1738216239429,-500.0,0.00016438,2]
[350933938,1738216239439,-500.0,0.00016438,2]
[350933939,1738216239450,-500.0,0.00016438,2]
[350933940,1738216239459,-222.4529588,0.00016438,2]
[350933950,1738216240653,-2137.48499979,0.00015663,2]
[350933951,1738216240709,-16490.13398901,0.00015663,2]
[350933952,1738216240719,-277.5470412,0.00016438,2]
[350933953,1738216240729,-500.0,0.00016438,2]
[350933954,1738216240739,-500.0,0.00016438,2]
[350933955,1738216240748,-500.0,0.00016438,2]
[350933956,1738216240758,-500.0,0.00016438,2]
[350933957,1738216240767,-290.30644607,0.00016438,2]
[350933958,1738216240776,-500.0,0.00016438,2]
[350933959,1738216240786,-631.94,0.00016438,2]
[350933960,1738216240795,-500.0,0.00016438,2]
[350933961,1738216240805,-500.0,0.00016438,2]
[350933962,1738216240815,-500.0,0.00016438,2]
[350933963,1738216240825,-500.0,0.00016438,2]
[350933964,1738216240834,-617.16,0.00016438,2]
[350933965,1738216240844,-257.05448497,0.00016438,2]
[350933966,1738216240853,-500.0,0.00016438,2]
[350933967,1738216240862,-500.0,0.00016438,2]
[350933968,1738216240871,-500.0,0.00016438,2]
[350933969,1738216240880,-500.0,0.00016438,2]
[350933970,1738216240890,-500.0,0.00016438,2]
[350933971,1738216240899,-500.0,0.00016438,2]
[350933972,1738216240908,-500.0,0.00016438,2]
[350933973,1738216240918,-500.0,0.00016438,2]
[350933974,1738216240927,-500.0,0.00016438,2]
[350933975,1738216240937,-401.92088621,0.00016438,2]
[350933976,1738216240947,-501.03650285,0.00016438,2]
[350933977,1738216240956,-478.6,0.00016438,2]
[350933978,1738216240966,-500.0,0.00016438,2]
[350933979,1738216240976,-500.0,0.00016438,2]
[350933980,1738216240985,-500.0,0.00016438,2]
[350933981,1738216240997,-500.0,0.00016438,2]
[350933982,1738216241007,-460.91235787,0.00016438,2]
[350933983,1738216241017,-500.0,0.00016438,2]
[350933984,1738216241027,-500.84418733,0.00016438,2]
[350933985,1738216241037,-500.0,0.00016438,2]
[350933986,1738216241047,-500.0,0.00016438,2]
[350933987,1738216241056,-500.0,0.00016438,2]
[350933988,1738216241066,-500.0,0.00016438,2]
[350933989,1738216241076,-500.0,0.00016438,2]
[350933990,1738216241086,-5302.98,0.00016438,2]
[350933991,1738216241095,-500.0,0.00016438,2]
[350933992,1738216241105,-202.0050081,0.00016438,2]
[350933993,1738216241114,-506.86110125,0.00016438,2]
[350933994,1738216241123,-500.0,0.00016438,2]
[350933995,1738216241133,-670.05,0.00016438,2]
[350933996,1738216241143,-13563.43,0.00016438,2]
[350933997,1738216241152,-544.73,0.00016438,2]
[350933998,1738216241162,-500.0,0.00016438,2]
[350933999,1738216241171,-748.11,0.00016438,2]
[350934000,1738216241180,-500.0,0.00016438,2]
[350934001,1738216241190,-500.0,0.00016438,2]
[350934002,1738216241199,-500.0,0.00016438,2]
[350934003,1738216241208,-500.0,0.00016438,2]
[350934004,1738216241217,-500.0,0.00016438,2]
[350934005,1738216241227,-500.0,0.00016438,2]
[350934006,1738216241236,-932.53,0.00016438,2]
[350934007,1738216241245,-500.0,0.00016438,2]
[350934008,1738216241254,-500.0,0.00016438,2]
[350934009,1738216241263,-500.0,0.00016438,2]
[350934010,1738216241273,-501.09694876,0.00016438,2]
[350934011,1738216241282,-500.0,0.00016438,2]
[350934012,1738216241291,-1320.39,0.00016438,2]
[350934013,1738216241301,-500.0,0.00016438,2]
[350934014,1738216241312,-500.0,0.00016438,2]
[350934015,1738216241321,-500.0,0.00016438,2]
[350934016,1738216241331,-500.0,0.00016438,2]
[350934017,1738216241340,-1849.19,0.00016438,2]
[350934018,1738216241349,-500.0,0.00016438,2]
[350934019,1738216241358,-525.63,0.00016438,2]
[350934020,1738216241368,-500.0,0.00016438,2]
[350934021,1738216241378,-500.0,0.00016438,2]
[350934022,1738216241387,-500.0,0.00016438,2]
[350934023,1738216241397,-500.0,0.00016438,2]
[350934024,1738216241407,-752.25,0.00016438,2]
[350934025,1738216241416,-500.0,0.00016438,2]
[350934026,1738216241425,-500.0,0.00016438,2]
[350934027,1738216241435,-1581.83,0.00016438,2]
[350934028,1738216241444,-500.0,0.00016438,2]
[350934029,1738216241454,-1031.92,0.00016438,2]
[350934030,1738216241463,-1709.84,0.00016438,2]
[350934031,1738216241473,-500.0,0.00016438,2]
[350934032,1738216241484,-718.13,0.00016438,2]
[350934033,1738216241493,-263.92,0.00016438,2]
[350934034,1738216241503,-660.6,0.00016438,2]
[350934035,1738216241513,-1019.84,0.00016438,2]
[350934036,1738216241651,-750.28,0.00016438,2]